bitfinex/quotes_BTCUSD_20250131
["timestamp","ask_amount","ask_price","bid_price","bid_amount"]
[1738334304290,0.16404379,104320.0,104310.0,0.10154146]
[1738334304704,0.16404379,104320.0,104310.0,0.10654146]
[1738334305467,0.16404379,104320.0,104310.0,0.1075]
[1738334306694,0.16404379,104320.0,104310.0,0.10654146]
[1738334306899,0.17404379,104320.0,104310.0,0.10654146]
[1738334308047,0.29762333,104320.0,104310.0,0.0092983]
[1738334308383,0.17404379,104320.0,104310.0,0.0092983]
[1738334308598,0.15404379,104320.0,104310.0,0.10154146]
[1738334308788,0.17404379,104320.0,104310.0,0.10154146]
[1738334308968,0.17404379,104320.0,104310.0,0.10554146]
[1738334309586,0.15404379,104320.0,104310.0,0.10554146]
[1738334309790,0.36772333,104320.0,104310.0,0.0082983]
[1738334310358,0.60484655,104320.0,104310.0,0.0082983]
[1738334311212,0.50748979,104320.0,104310.0,0.0082983]
[1738334311574,0.50748979,104320.0,104310.0,0.0042983]
[1738334312044,0.50848979,104320.0,104310.0,0.00432741]
[1738334312180,0.293802,104310.0,104300.0,0.0001218]
[1738334312376,0.54096108,104310.0,104300.0,0.0001218]
[1738334312617,0.49268154,104310.0,104300.0,0.0001218]
[1738334312825,0.61626108,104310.0,104300.0,0.0001218]
[1738334313409,0.833861,104310.0,104300.0,0.0001218]
[1738334313763,0.833861,104310.0,104300.0,0.0041218]
[1738334314372,0.49268154,104310.0,104300.0,0.0041218]
[1738334314955,0.49268154,104310.0,104300.0,0.0001218]
[1738334315159,0.50168154,104310.0,104300.0,0.0011218]
[1738334320724,0.79290424,104310.0,104300.0,8e-07]
[1738334324170,0.79290424,104310.0,104300.0,0.0001226]
[1738334324369,0.890261,104310.0,104300.0,6e-07]
[1738334325043,0.79290424,104310.0,104300.0,6e-07]
[1738334326524,0.153857,104270.0,104260.0,0.00088028]
[1738334326738,0.153857,104270.0,104260.0,0.09724316]
[1738334326914,0.345667,104270.0,104260.0,0.09724316]
[1738334327759,0.34580541,104270.0,104260.0,0.09724316]
[1738334328399,0.46938495,104270.0,104260.0,0.09724316]
[1738334328610,0.47038495,104270.0,104260.0,0.10424316]
[1738334328854,0.46038495,104270.0,104260.0,0.007]
[1738334329305,0.153871,104260.0,104250.0,0.01961227]
[1738334329512,0.27745054,104260.0,104250.0,0.09724316]
[1738334329993,0.143898,104240.0,104230.0,0.13498828]
[1738334330191,0.143898,104240.0,104230.0,0.37710271]
[1738334330405,0.143898,104240.0,104230.0,0.37614344]
[1738334330822,0.585583,104250.0,104230.0,0.37614344]
[1738334331026,0.46933254,104250.0,104240.0,0.09724316]
[1738334331488,0.335753,104250.0,104240.0,0.09820242]
[1738334332379,0.335753,104250.0,104240.0,0.10224316]
[1738334332584,0.45933254,104250.0,104240.0,0.10224316]
[1738334332803,0.46933254,104250.0,104240.0,0.09724316]
[1738334333020,0.143898,104240.0,104230.0,0.06485924]
[1738334333175,0.26747754,104240.0,104230.0,0.1630617]
[1738334333396,0.26747754,104240.0,104230.0,0.1621024]
[1738334333935,0.27747754,104240.0,104230.0,0.1167024]
[1738334335085,0.27747754,104240.0,104230.0,0.09736486]
[1738334335273,0.153898,104240.0,104230.0,0.09736486]
[1738334336901,0.154898,104240.0,104230.0,0.10336486]
[1738334337384,0.27847754,104240.0,104230.0,0.10336486]
[1738334337939,0.154898,104240.0,104230.0,0.10336486]
[1738334338703,0.144898,104240.0,104230.0,0.24727686]
[1738334339114,0.001,104240.0,104230.0,0.24727686]
[1738334340495,0.00013841,104270.0,104260.0,0.143871]
[1738334340706,0.00013841,104270.0,104260.0,0.28827307]
[1738334340923,0.00013841,104270.0,104260.0,0.31031416]
[1738334341138,0.00013841,104270.0,104260.0,0.17882625]
[1738334341351,0.00013841,104270.0,104260.0,0.09724316]
[1738334341352,0.27757495,104270.0,104260.0,0.09724316]
[1738334341560,0.345725,104260.0,104230.0,0.8094677]
[1738334341778,0.143886,104250.0,104240.0,0.09820223]
[1738334341986,0.335725,104260.0,104240.0,0.24209923]
[1738334342197,0.66122795,104270.0,104240.0,0.43396323]
[1738334342403,0.143874,104260.0,104240.0,0.43395423]
[1738334342628,0.335708,104260.0,104240.0,0.24209923]
[1738334342864,0.001,104260.0,104250.0,0.09724316]
[1738334343135,0.001,104260.0,104250.0,0.43767916]
[1738334343352,0.33580541,104270.0,104250.0,0.77339216]
[1738334343582,0.52762541,104270.0,104250.0,0.77339216]
[1738334343785,0.143871,104260.0,104250.0,0.14324316]
[1738334345303,0.144871,104260.0,104250.0,0.15020223]
[1738334345752,0.143871,104260.0,104250.0,0.14420223]
[1738334346178,0.143871,104260.0,104250.0,0.10224316]
[1738334346802,0.143871,104260.0,104250.0,0.09724316]
[1738334347010,0.153871,104260.0,104250.0,0.09724316]
[1738334347834,0.153871,104260.0,104250.0,0.09820228]
[1738334348167,0.153871,104260.0,104250.0,0.09724316]
[1738334348351,0.153871,104260.0,104250.0,0.09820228]
[1738334348807,0.153871,104260.0,104250.0,0.10220228]
[1738334349016,0.153871,104260.0,104250.0,0.10124316]
[1738334349215,0.29745054,104260.0,104250.0,0.10124316]
[1738334349426,0.173871,104260.0,104250.0,0.10124316]
[1738334349648,0.163871,104260.0,104250.0,0.10124316]
[1738334350308,0.143871,104260.0,104250.0,0.10124316]
[1738334350485,0.163871,104260.0,104250.0,0.10124316]
[1738334351806,0.163871,104260.0,104250.0,0.10220225]
[1738334353620,0.143871,104260.0,104250.0,0.10220225]
[1738334353831,0.163871,104260.0,104250.0,0.10220225]
[1738334354221,0.33607161,104270.0,104250.0,0.24608625]
[1738334354453,0.14425161,104270.0,104260.0,0.000959]
[1738334354663,0.14425161,104270.0,104260.0,0.24207316]
[1738334354841,0.14425161,104270.0,104260.0,0.24111416]
[1738334355061,0.00039461,104270.0,104260.0,0.24111416]
[1738334355230,0.14425161,104270.0,104260.0,0.24111416]
[1738334355445,0.14525161,104270.0,104260.0,0.24111416]
[1738334355855,0.00139461,104270.0,104260.0,0.24111416]
[1738334356057,0.00039461,104270.0,104260.0,0.24111416]
[1738334356259,0.00339461,104270.0,104260.0,0.24111416]
[1738334356430,0.14725161,104270.0,104260.0,0.24111416]
[1738334356862,0.00039461,104270.0,104260.0,0.24111416]
[1738334357080,0.00039461,104270.0,104260.0,0.26411416]
[1738334357268,0.00039461,104270.0,104260.0,0.33921416]
[1738334357594,0.00039461,104270.0,104260.0,0.3690946]
[1738334358136,0.00039461,104270.0,104260.0,0.3740946]
[1738334360080,0.52736,104300.0,104280.0,0.33561]
[1738334360282,0.335592,104300.0,104290.0,0.09820191]
[1738334361349,0.335592,104300.0,104290.0,0.24203091]
[1738334361523,0.339592,104300.0,104290.0,0.24107216]
[1738334361724,0.004,104300.0,104290.0,0.34447216]
[1738334361938,0.52755699,104310.0,104290.0,0.34897602]
[1738334362149,0.33580899,104310.0,104300.0,0.00095862]
[1738334362356,0.33580899,104310.0,104300.0,0.10272434]
[1738334362566,0.34580899,104310.0,104300.0,0.10272434]
[1738334362751,0.46938853,104310.0,104300.0,0.10176572]
[1738334364461,0.48938853,104310.0,104300.0,0.10176572]
[1738334364663,0.48938853,104310.0,104300.0,0.10476572]
[1738334365270,0.48938853,104310.0,104300.0,0.10176572]
[1738334366408,0.47938853,104310.0,104300.0,0.10176572]
[1738334367426,0.48938853,104310.0,104300.0,0.10176572]
[1738334367660,0.36580899,104310.0,104300.0,0.10176572]
[1738334367831,0.34580899,104310.0,104300.0,0.10176572]
[1738334368048,0.33580899,104310.0,104300.0,0.10176572]
[1738334368249,0.33580899,104310.0,104300.0,0.10272437]
[1738334369647,0.00025599,104310.0,104300.0,0.26953937]
[1738334369865,0.00025599,104310.0,104300.0,0.26858072]
[1738334370074,0.00025599,104310.0,104300.0,0.27158072]
[1738334370530,0.00025599,104310.0,104300.0,0.26858072]
[1738334370913,0.00025599,104310.0,104300.0,0.27258072]
[1738334371472,0.00025599,104310.0,104300.0,0.35148072]
[1738334372111,0.01025579,104320.0,104310.0,0.143802]
[1738334372375,0.01025579,104320.0,104310.0,0.2464724]
[1738334372376,0.15404379,104320.0,104310.0,0.2464724]
[1738334372542,0.15404379,104320.0,104310.0,0.24551393]
[1738334372741,0.01025579,104320.0,104310.0,0.24551393]
[1738334373344,0.01025579,104320.0,104310.0,0.24851393]
[1738334374187,0.01025579,104320.0,104310.0,0.26757107]
[1738334374379,0.01025579,104320.0,104310.0,0.29057107]
[1738334374615,0.01025579,104320.0,104310.0,0.34047107]
[1738334375534,0.01025579,104320.0,104310.0,0.61405061]
[1738334375566,0.01025579,104320.0,104310.0,0.49047107]
[1738334376412,0.01025579,104320.0,104310.0,0.48747107]
[1738334376863,0.01025579,104320.0,104310.0,0.49247107]
[1738334380660,0.00043096,104320.0,104310.0,1.44730732]
[1738334380857,0.00025557,104340.0,104330.0,0.316774]
[1738334381078,0.00025557,104360.0,104350.0,0.143747]
[1738334381287,0.01,104370.0,104350.0,0.0982013]
[1738334381487,0.54893654,104370.0,104360.0,0.09724316]
[1738334381832,0.54893654,104370.0,104360.0,0.1025472]
[1738334382043,0.54908122,104370.0,104360.0,0.1025472]
[1738334382483,0.53908122,104370.0,104360.0,0.1025472]
[1738334382704,0.55908122,104370.0,104360.0,0.1025472]
[1738334383066,0.55908122,104370.0,104360.0,0.00530404]
[1738334383363,0.01,104360.0,104330.0,0.508451]
[1738334383602,0.335419,104350.0,104340.0,0.10351903]
[1738334383810,0.335419,104350.0,104340.0,0.10256079]
[1738334383960,0.335419,104350.0,104340.0,0.24632079]
[1738334384165,0.51688554,104360.0,104340.0,0.43799879]
[1738334384166,0.66063054,104360.0,104340.0,0.43799879]
[1738334384367,0.153745,104360.0,104350.0,0.14470524]
[1738334384603,0.153745,104360.0,104350.0,0.10351333]
[1738334385438,0.153745,104360.0,104350.0,0.24726033]
[1738334385614,0.153745,104360.0,104350.0,0.24630209]
[1738334385848,0.153745,104360.0,104350.0,0.10255509]
[1738334386063,0.59725421,104370.0,104350.0,0.24726028]
[1738334386269,0.44077183,104370.0,104360.0,0.09724316]
[1738334386476,0.46077183,104370.0,104360.0,0.10345914]
[1738334386685,0.42576667,104370.0,104360.0,0.10250101]
[1738334387516,0.44576667,104370.0,104360.0,0.10250101]
[1738334387733,0.55934621,104370.0,104360.0,0.10450101]
[1738334387937,0.55934621,104370.0,104360.0,0.00725785]
[1738334388521,0.55934621,104370.0,104360.0,0.00525785]
[1738334388763,0.44576667,104370.0,104360.0,0.09724316]
[1738334388982,0.44576667,104370.0,104360.0,0.10252313]
[1738334389311,0.56934621,104370.0,104360.0,0.10252313]
[1738334389924,0.44576667,104370.0,104360.0,0.10252313]
[1738334390879,0.56934621,104370.0,104360.0,0.10452313]
[1738334391506,0.44576667,104370.0,104360.0,0.10452313]
[1738334391891,0.56934621,104370.0,104360.0,0.10452313]
[1738334392100,0.55934621,104370.0,104360.0,0.00727997]
[1738334393135,0.55934621,104370.0,104360.0,0.00527997]
[1738334393594,0.143747,104350.0,104340.0,0.18725557]
[1738334393778,0.335391,104360.0,104350.0,0.023]
[1738334393981,0.335391,104360.0,104350.0,0.26399016]
[1738334394400,0.36576867,104370.0,104360.0,0.143733]
[1738334394608,0.36576867,104370.0,104360.0,0.09724316]
[1738334396348,0.47934821,104370.0,104360.0,0.09724316]
[1738334397143,0.52664821,104370.0,104360.0,0.09724316]
[1738334397341,0.75594821,104370.0,104350.0,0.0001218]
[1738334397583,0.28731254,104360.0,104350.0,0.0001218]
[1738334397774,0.41731254,104360.0,104350.0,0.0001218]
[1738334398596,0.41731254,104360.0,104350.0,0.09736496]
[1738334398996,0.303733,104360.0,104350.0,0.09736496]
[1738334399205,0.303733,104360.0,104350.0,0.09936496]
[1738334399821,0.303733,104360.0,104350.0,0.10032319]
[1738334400269,0.293733,104360.0,104350.0,0.10032319]
[1738334400479,0.143733,104360.0,104350.0,0.26707019]
[1738334400653,0.143733,104360.0,104350.0,0.26611196]
[1738334401077,0.143733,104360.0,104350.0,0.26411196]
[1738334401488,0.143733,104360.0,104350.0,0.26711196]
[1738334402030,0.143733,104360.0,104350.0,0.26411196]
[1738334402235,0.143733,104360.0,104350.0,0.45576696]
[1738334402366,0.143733,104360.0,104350.0,0.26711196]
[1738334402573,0.143733,104360.0,104350.0,0.27243984]
[1738334403724,0.55740567,104370.0,104350.0,0.46409284]
[1738334403911,0.143733,104360.0,104350.0,0.17519668]
[1738334404118,0.143733,104360.0,104350.0,0.27339801]
[1738334404356,0.143733,104360.0,104350.0,0.27243984]
[1738334404542,0.143733,104360.0,104350.0,0.29924757]
[1738334404983,0.143733,104360.0,104350.0,0.30224757]
[1738334405188,0.143733,104360.0,104350.0,0.15850057]
[1738334405396,0.153733,104360.0,104350.0,0.13250057]
[1738334405767,0.153733,104360.0,104350.0,0.10569284]
[1738334406369,0.143733,104360.0,104350.0,0.10569284]
[1738334406557,0.143733,104360.0,104350.0,0.3032325]
[1738334406755,0.143733,104360.0,104350.0,0.12869284]
[1738334407006,0.153733,104360.0,104350.0,0.10569284]
[1738334408184,0.153733,104360.0,104350.0,0.1247684]
[1738334408395,0.15398879,104360.0,104350.0,0.1247684]
[1738334408601,0.15398879,104360.0,104350.0,0.10569284]
[1738334408834,0.36686833,104360.0,104350.0,0.10569284]
[1738334409034,0.36686833,104360.0,104350.0,0.00844968]
[1738334409832,0.49686833,104360.0,104350.0,0.00844968]
[1738334410055,0.54606833,104360.0,104350.0,0.00844968]
[1738334410272,0.01,104330.0,104310.0,0.10897176]
[1738334410487,0.27736754,104320.0,104310.0,0.13883784]
[1738334410735,0.27736754,104320.0,104310.0,0.20621492]
[1738334411585,0.27751211,104320.0,104310.0,0.20621492]
[1738334412134,0.15393257,104320.0,104310.0,0.20621492]
[1738334412319,0.15393257,104320.0,104310.0,0.12024316]
[1738334413962,0.15393257,104320.0,104310.0,0.12424316]
[1738334414375,0.15393257,104320.0,104310.0,0.12024316]
[1738334414589,0.15393257,104320.0,104310.0,0.10024316]
[1738334414797,0.27751211,104320.0,104310.0,0.10024316]
[1738334415000,0.26751211,104320.0,104310.0,0.10024316]
[1738334415431,0.59376887,104320.0,104310.0,0.003]
[1738334415671,0.71734841,104320.0,104310.0,0.003]
[1738334415855,0.76404841,104320.0,104310.0,0.003]
[1738334416269,0.64046887,104320.0,104310.0,0.003]
[1738334416480,0.54311211,104320.0,104310.0,0.003]
[1738334417094,0.293802,104310.0,104300.0,0.0001219]
[1738334417295,0.41738154,104310.0,104300.0,0.09736506]
[1738334418148,0.41738154,104310.0,104300.0,0.10189638]
[1738334419234,0.54096108,104310.0,104300.0,0.00465322]
[1738334419507,0.62056108,104310.0,104300.0,0.00465322]
[1738334419701,0.66586108,104310.0,104300.0,0.00465322]
[1738334420573,0.153857,104270.0,104260.0,0.10897176]
[1738334420785,0.27743654,104270.0,104260.0,0.20621492]
[1738334421000,0.153857,104270.0,104260.0,0.20621492]
[1738334421201,0.153857,104270.0,104260.0,0.12024316]
[1738334421622,0.173857,104270.0,104260.0,0.12024316]
[1738334421805,0.173857,104270.0,104260.0,0.12372565]
[1738334422020,0.29743654,104270.0,104260.0,0.12372565]
[1738334422452,0.173857,104270.0,104260.0,0.12372565]
[1738334423951,0.173857,104270.0,104260.0,0.12072565]
[1738334424187,0.173857,104270.0,104260.0,0.12372565]
[1738334427428,0.153857,104270.0,104260.0,0.12372565]
[1738334427647,0.173857,104270.0,104260.0,0.12372565]
[1738334427848,0.163857,104270.0,104260.0,0.26759665]
[1738334428059,0.163857,104270.0,104260.0,0.12372565]
[1738334428198,0.163857,104270.0,104260.0,0.12468466]
[1738334428404,0.163857,104270.0,104260.0,0.12372565]
[1738334428605,0.163857,104270.0,104260.0,0.12468466]
[1738334429615,0.143857,104270.0,104260.0,0.26555566]
[1738334429749,0.605406,104280.0,104260.0,0.45941865]
[1738334429750,0.547452,104280.0,104260.0,0.45941865]
[1738334429960,0.355649,104280.0,104270.0,0.09724316]
[1738334430612,0.335649,104280.0,104270.0,0.09724316]
[1738334430835,0.274957,104300.0,104290.0,0.023]
[1738334431041,0.143822,104300.0,104290.0,0.12024316]
[1738334431249,0.163822,104300.0,104290.0,0.12024316]
[1738334431615,0.143822,104300.0,104290.0,0.26407216]
[1738334432039,0.143822,104300.0,104290.0,0.12932703]
[1738334432242,0.143822,104300.0,104290.0,0.13028576]
[1738334432453,0.143822,104300.0,104290.0,0.27411476]
[1738334432653,0.143822,104300.0,104290.0,0.27315603]
[1738334432951,0.575238,104310.0,104300.0,0.133815]
[1738334432952,0.143805,104310.0,104300.0,0.133815]
[1738334433219,0.143805,104310.0,104300.0,0.2320168]
[1738334433514,0.143805,104310.0,104300.0,0.24011131]
[1738334433912,0.143805,104310.0,104300.0,0.10629631]
[1738334434152,0.14394954,104310.0,104300.0,0.10725495]
[1738334435326,0.14394954,104310.0,104300.0,0.11025495]
[1738334435536,0.16394954,104310.0,104300.0,0.11025495]
[1738334435738,0.17394954,104310.0,104300.0,0.13229631]
[1738334435972,0.14394954,104310.0,104300.0,0.13229631]
[1738334436170,0.14394954,104310.0,104300.0,0.27706997]
[1738334436512,0.14394954,104310.0,104300.0,0.13229631]
[1738334437051,0.15394954,104310.0,104300.0,0.13229631]
[1738334440100,0.28752908,104310.0,104300.0,0.10929631]
[1738334440531,0.43752908,104310.0,104300.0,0.01205315]
[1738334440736,0.62110862,104310.0,104300.0,0.00905315]
[1738334440941,0.49752908,104310.0,104300.0,0.00905315]
[1738334441145,0.153829,104290.0,104280.0,0.023]
[1738334441348,0.153829,104290.0,104280.0,0.12024316]
[1738334442229,0.173829,104290.0,104280.0,0.12024316]
[1738334442652,0.1735749,104290.0,104280.0,0.13262625]
[1738334442858,0.1735749,104290.0,104280.0,0.12324316]
[1738334443573,0.1735749,104290.0,104280.0,0.26804501]
[1738334443574,0.163829,104290.0,104280.0,0.26804501]
[1738334443709,0.163829,104290.0,104280.0,0.26720806]
[1738334444513,0.163829,104290.0,104280.0,0.12336506]
[1738334444717,0.1735749,104290.0,104280.0,0.12336506]
[1738334445228,0.143829,104290.0,104280.0,0.12336506]
[1738334445429,0.143829,104290.0,104280.0,0.26816687]
[1738334445629,0.143829,104290.0,104280.0,0.26720806]
[1738334446012,0.143829,104290.0,104280.0,0.26420806]
[1738334446952,0.00025599,104300.0,104290.0,0.166829]
[1738334447160,0.00025599,104300.0,104290.0,0.53861036]
[1738334447372,0.00025599,104300.0,104290.0,0.56747782]
[1738334447580,0.00025599,104300.0,104290.0,0.44389828]
[1738334447791,0.00025599,104300.0,104290.0,0.4534353]
[1738334448239,0.14407099,104300.0,104290.0,0.3034353]
[1738334448449,0.14407099,104300.0,104290.0,0.1596063]
[1738334448596,0.14407099,104300.0,104290.0,0.30439403]
[1738334448807,0.14407099,104300.0,104290.0,0.3034353]
[1738334449010,0.00025599,104300.0,104290.0,0.3034353]
[1738334450220,0.00025599,104300.0,104290.0,0.42701484]
[1738334450836,0.00025599,104300.0,104290.0,0.3034353]
[1738334451923,0.14407099,104300.0,104290.0,0.3034353]
[1738334452083,0.00025599,104300.0,104290.0,0.3034353]
[1738334452284,0.14407099,104300.0,104290.0,0.3034353]
[1738334452598,0.14407099,104300.0,104290.0,0.12978018]
[1738334453386,0.26765053,104300.0,104290.0,0.12978018]
[1738334453611,0.28765053,104300.0,104290.0,0.12978018]
[1738334454079,0.17381689,104300.0,104290.0,0.13278018]
[1738334454342,0.16407099,104300.0,104290.0,0.13278018]
[1738334454551,0.17381689,104300.0,104290.0,0.13278018]
[1738334455354,0.17381689,104300.0,104290.0,0.12978018]
[1738334455551,0.17381689,104300.0,104290.0,0.13178018]
[1738334458719,0.29739643,104300.0,104290.0,0.13178018]
[1738334458928,0.16407099,104300.0,104290.0,0.13178018]
[1738334459985,0.15381689,104300.0,104290.0,0.13178018]
[1738334460184,0.15381689,104300.0,104290.0,0.13273894]
[1738334460390,0.14407099,104300.0,104290.0,0.13273894]
[1738334460787,0.14407099,104300.0,104290.0,0.13178018]
[1738334461202,0.17381689,104300.0,104290.0,0.13178018]
[1738334461582,0.14407099,104300.0,104290.0,0.27560918]
[1738334461784,0.14407099,104300.0,104290.0,0.27360918]
[1738334461990,0.14407099,104300.0,104290.0,0.12978018]
[1738334462192,0.16407099,104300.0,104290.0,0.13278018]
[1738334462403,0.14407099,104300.0,104290.0,0.13278018]
[1738334462555,0.14407099,104300.0,104290.0,0.12978018]
[1738334462875,0.14407099,104300.0,104290.0,0.13278018]
[1738334463078,0.16407099,104300.0,104290.0,0.13278018]
[1738334463496,0.14407099,104300.0,104290.0,0.13278018]
[1738334463701,0.16407099,104300.0,104290.0,0.13278018]
[1738334463902,0.16407099,104300.0,104290.0,0.13373892]
[1738334464475,0.00025599,104300.0,104290.0,0.27756792]
[1738334464713,0.00025599,104300.0,104290.0,0.30649791]
[1738334465550,0.00025599,104300.0,104290.0,0.43007745]
[1738334466186,0.00025599,104300.0,104290.0,0.58007745]
[1738334466607,0.00025599,104300.0,104290.0,0.70877745]
[1738334467249,0.00025599,104300.0,104290.0,0.70903155]
[1738334467658,0.00025599,104300.0,104290.0,0.70877745]
[1738334468329,0.00025599,104300.0,104290.0,0.70589935]
[1738334468565,0.00025599,104300.0,104290.0,0.70989935]
[1738334468764,0.00025599,104300.0,104290.0,0.71984158]
[1738334468972,0.00025599,104300.0,104290.0,0.71584158]
[1738334469192,0.00025599,104300.0,104290.0,0.71609568]
[1738334469586,0.00025599,104300.0,104290.0,0.72209568]
[1738334471942,0.00025599,104300.0,104290.0,0.80806744]
[1738334473635,0.00014454,104310.0,104300.0,0.29039454]
[1738334473838,0.00014454,104310.0,104300.0,1.37236268]
[1738334474151,0.00014454,104310.0,104300.0,1.38234215]
[1738334474353,0.00014454,104310.0,104300.0,1.46239625]
[1738334474552,0.00014454,104310.0,104300.0,1.51089625]
[1738334475542,0.41627679,104350.0,104340.0,0.023]
[1738334475686,0.41642131,104350.0,104340.0,0.13114737]
[1738334475900,0.41642131,104350.0,104340.0,0.27490737]
[1738334476233,0.41642131,104350.0,104340.0,0.27394909]
[1738334477076,0.43642131,104350.0,104340.0,0.27394909]
[1738334477284,0.41642131,104350.0,104340.0,0.27394909]
[1738334477500,0.43642131,104350.0,104340.0,0.27394909]
[1738334477727,0.43642131,104350.0,104340.0,0.13018909]
[1738334478021,0.08100031,104350.0,104340.0,0.27490737]
[1738334478266,0.00040031,104350.0,104340.0,0.27394909]
[1738334479320,0.00040031,104350.0,104340.0,1.62594442]
[1738334479535,0.00040031,104350.0,104340.0,1.65907372]
[1738334479729,0.00040031,104350.0,104340.0,0.58040383]
[1738334479982,0.00040031,104350.0,104340.0,0.50270383]
[1738334480221,0.14414731,104350.0,104340.0,0.13018909]
[1738334480433,0.14414731,104350.0,104340.0,0.27490733]
[1738334480649,0.14414731,104350.0,104340.0,0.27394909]
[1738334481501,0.14414731,104350.0,104340.0,0.13018909]
[1738334481714,0.14414731,104350.0,104340.0,0.27490735]
[1738334481925,0.14414731,104350.0,104340.0,0.27394909]
[1738334482331,0.00040031,104350.0,104340.0,0.27394909]
[1738334482522,0.00040031,104350.0,104340.0,0.27794909]
[1738334482732,0.00040031,104350.0,104340.0,0.42794909]
[1738334482936,0.00040031,104350.0,104340.0,0.55152863]
[1738334483137,0.00040031,104350.0,104340.0,0.45769107]
[1738334483342,0.00040031,104350.0,104340.0,0.42794909]
[1738334483687,0.00040031,104350.0,104340.0,0.71015997]
[1738334483907,0.00040031,104350.0,104340.0,0.71041407]
[1738334485010,0.00040031,104350.0,104340.0,0.70641407]
[1738334485209,0.00040031,104350.0,104340.0,0.71141407]
[1738334485948,0.00040031,104350.0,104340.0,0.71115997]
[1738334486160,0.00040031,104350.0,104340.0,0.70615997]
[1738334486717,0.00040031,104350.0,104340.0,0.71215997]
[1738334486952,0.00040031,104350.0,104340.0,0.71241407]
[1738334488783,0.00040031,104350.0,104340.0,0.83599361]
[1738334489614,0.00025599,104370.0,104360.0,0.293733]
[1738334489825,0.00025599,104370.0,104360.0,1.49239195]
[1738334490036,0.00025599,104370.0,104360.0,1.60747975]
[1738334491698,0.00025599,104370.0,104360.0,1.40890021]
[1738334491903,0.00025599,104370.0,104360.0,1.41490021]
[1738334492317,0.00025599,104370.0,104360.0,1.38522663]
[1738334492527,0.00025599,104370.0,104360.0,1.53871985]
[1738334492951,0.00025599,104380.0,104370.0,0.316719]
[1738334493163,0.00025599,104380.0,104370.0,0.41396216]
[1738334493375,0.00025599,104380.0,104370.0,0.424368]
[1738334493599,0.00025599,104380.0,104370.0,0.59754754]
[1738334493945,0.00025599,104380.0,104370.0,0.62720572]
[1738334495076,0.00025599,104380.0,104370.0,0.63220572]
[1738334495402,0.00025599,104380.0,104370.0,0.62720572]
[1738334495818,0.00025599,104380.0,104370.0,0.63320572]
[1738334496032,0.00025599,104380.0,104370.0,0.70935982]
[1738334496232,0.00025599,104380.0,104370.0,0.73238505]
[1738334497240,0.00025599,104380.0,104370.0,0.71931299]
[1738334498242,0.00025599,104380.0,104370.0,0.74233822]
[1738334498938,0.00025599,104380.0,104370.0,0.7631248]
[1738334499752,1.00025662,104400.0,104390.0,0.143691]
[1738334499956,1.00073854,104400.0,104390.0,1.49330766]
[1738334500160,1.00073854,104400.0,104390.0,1.50371741]
[1738334500286,1.00073854,104400.0,104390.0,1.52674264]
[1738334500490,1.00073854,104400.0,104390.0,1.52243152]
[1738334500699,1.00073854,104400.0,104390.0,1.55211003]
[1738334501301,1.00073854,104400.0,104390.0,1.55711003]
[1738334501708,1.00073854,104400.0,104390.0,1.55211003]
[1738334501909,1.00073854,104400.0,104390.0,1.42853049]
[1738334502114,1.00073854,104400.0,104390.0,1.43453049]
[1738334502360,1.00073854,104400.0,104390.0,1.45848374]
[1738334502494,1.00073854,104400.0,104390.0,1.43545851]
[1738334502688,1.00073854,104400.0,104390.0,0.48062226]
[1738334503710,1.08103854,104400.0,104390.0,0.4269905]
[1738334504012,1.08103854,104400.0,104390.0,0.4209905]
[1738334504359,1.08103854,104400.0,104390.0,0.4259905]
[1738334505206,1.08103854,104400.0,104390.0,0.43550353]
[1738334505613,1.08103854,104400.0,104390.0,0.4259905]
[1738334505972,1.34829608,104400.0,104390.0,0.1322995]
[1738334506377,1.00073854,104400.0,104390.0,0.2759905]
[1738334506490,1.00073854,104400.0,104390.0,0.29471849]
[1738334506689,1.00073854,104400.0,104390.0,0.4744123]
[1738334506895,1.00073854,104400.0,104390.0,1.42924855]
[1738334507735,1.00073854,104400.0,104390.0,1.54782809]
[1738334508001,1.00073854,104400.0,104390.0,1.79956173]
[1738334508212,1.00073854,104400.0,104390.0,1.67598219]
[1738334508639,1.00073854,104400.0,104390.0,1.69667409]
[1738334508861,1.00073854,104400.0,104390.0,1.70267409]
[1738334509062,0.90106853,104400.0,104390.0,1.82625363]
[1738334509264,0.74291655,104400.0,104390.0,1.82625363]
[1738334509550,0.42823169,104400.0,104390.0,3.61174863]
[1738334509836,0.06209234,104400.0,104390.0,3.45293063]
[1738334510043,0.00025662,104440.0,104430.0,0.1502541]
[1738334510263,0.00025557,104460.0,104440.0,0.316623]
[1738334510483,1.00040033,104450.0,104440.0,0.5374457]
[1738334510685,1.00040033,104450.0,104440.0,0.5690703]
[1738334510862,1.00040033,104450.0,104440.0,0.59610688]
[1738334511291,1.00040033,104450.0,104440.0,0.60109334]
[1738334511492,1.00040033,104450.0,104440.0,0.42079886]
[1738334512312,1.00040033,104450.0,104440.0,0.42479886]
[1738334513799,1.00040033,104450.0,104440.0,0.5483784]
[1738334514831,0.99382748,104450.0,104440.0,0.5486325]
[1738334515674,0.99408347,104450.0,104440.0,0.57826609]
[1738334515937,0.99408347,104450.0,104440.0,0.62006609]
[1738334516164,0.82645981,104450.0,104440.0,1.53459702]
[1738334516376,0.80934817,104450.0,104440.0,1.53459702]
[1738334516585,0.80934817,104450.0,104440.0,1.55904323]
[1738334516804,0.79020017,104450.0,104440.0,1.55904323]
[1738334517012,0.68306124,104450.0,104440.0,1.55904323]
[1738334517219,0.63457562,104450.0,104440.0,1.55904323]
[1738334517488,0.60577562,104450.0,104440.0,1.55404323]
[1738334517697,0.57620933,104450.0,104440.0,1.55404323]
[1738334517931,0.50916951,104450.0,104440.0,1.56004323]
[1738334518140,0.47087351,104450.0,104440.0,1.56004323]
[1738334518351,0.47087351,104450.0,104440.0,1.55404323]
[1738334518566,0.47087351,104450.0,104440.0,1.56004323]
[1738334518995,0.35339601,104450.0,104440.0,1.56004323]
[1738334519217,0.35204858,104450.0,104440.0,1.56004323]
[1738334519421,0.29254346,104450.0,104440.0,1.56004323]
[1738334519808,0.27339746,104450.0,104440.0,1.56004323]
[1738334520036,0.19681346,104450.0,104440.0,1.56004323]
[1738334520249,0.18681901,104450.0,104440.0,1.56004323]
[1738334520459,0.00669193,104450.0,104440.0,1.66004323]
[1738334520860,0.00025557,104460.0,104450.0,0.3168631]
[1738334521064,0.00025557,104460.0,104450.0,2.85945257]
[1738334521267,0.00025557,104460.0,104450.0,2.86619302]
[1738334521483,0.00025557,104460.0,104450.0,2.10581363]
[1738334521685,0.00025557,104460.0,104450.0,1.52889609]
[1738334521894,0.07575557,104460.0,104450.0,0.1336172]
[1738334522099,0.07575557,104460.0,104450.0,0.10398361]
[1738334522308,0.07575557,104460.0,104450.0,0.24854988]
[1738334522550,0.07575557,104460.0,104450.0,0.54417215]
[1738334522909,0.07575557,104460.0,104450.0,0.55017215]
[1738334523655,0.07575557,104460.0,104450.0,0.54417215]